fUST/lending_fUST_20250909
["ID","MTS","AMOUNT","RATE_DAILY","PERIOD"]
[384371187,1757352668948,-585.636754,0.00021918,2]
[384371188,1757352668958,-585.636754,0.00021918,2]
[384371189,1757352668967,-585.636754,0.00021918,2]
[384371190,1757352668977,-585.636754,0.00021918,2]
[384371191,1757352668986,-585.636754,0.00021918,2]
[384371192,1757352668995,-585.636754,0.00021918,2]
[384371193,1757352669006,-585.636754,0.00021918,2]
[384371194,1757352669015,-585.636754,0.00021918,2]
[384371195,1757352669024,-585.636754,0.00021918,2]
[384371196,1757352669033,-585.636754,0.00021918,2]
[384371197,1757352669043,-585.636754,0.00021918,2]
[384371198,1757352669053,-585.636754,0.00021918,2]
[384371199,1757352669063,-585.636754,0.00021918,2]
[384371200,1757352669073,-585.636754,0.00021918,2]
[384371201,1757352669082,-585.636754,0.00021918,2]
[384371202,1757352669092,-585.636754,0.00021918,2]
[384371203,1757352669102,-585.636754,0.00021918,2]
[384371204,1757352669113,-585.636754,0.00021918,2]
[384371205,1757352669122,-585.636754,0.00021918,2]
[384371206,1757352669132,-585.636759,0.00021918,2]
[384371207,1757352669142,-153.0,0.00021918,2]
[384371208,1757352669152,-153.0,0.00021918,2]
[384371209,1757352669162,-153.0,0.00021918,2]
[384371210,1757352669172,-153.0,0.00021918,2]
[384371211,1757352669181,-153.0,0.00021918,2]
[384371212,1757352669190,-153.0,0.00021918,2]
[384371213,1757352669200,-153.0,0.00021918,2]
[384371214,1757352669209,-153.0,0.00021918,2]
[384371215,1757352669219,-153.0,0.00021918,2]
[384371216,1757352669228,-153.0,0.00021918,2]
[384371217,1757352669238,-153.0,0.00021918,2]
[384371218,1757352669248,-153.0,0.00021918,2]
[384371219,1757352669259,-153.0,0.00021918,2]
[384371220,1757352669270,-153.0,0.00021918,2]
[384371221,1757352669280,-153.0,0.00021918,2]
[384371222,1757352669291,-153.0,0.00021918,2]
[384371223,1757352669307,-338.860016,0.00021918,2]
[384371224,1757352669318,-1658.295599,0.00021918,2]
[384371225,1757352669327,-1658.295599,0.00021918,2]
[384371226,1757352669338,-1658.295599,0.00021918,2]
[384371227,1757352669348,-1658.295599,0.00021918,2]
[384371228,1757352669358,-1658.295599,0.00021918,2]
[384371229,1757352669367,-1658.295599,0.00021918,2]
[384371230,1757352669377,-1658.295599,0.00021918,2]
[384371231,1757352669387,-1658.295599,0.00021918,2]
[384371232,1757352669397,-1658.295599,0.00021918,2]
[384371233,1757352669407,-1658.295599,0.00021918,2]
[384371234,1757352669417,-1658.295599,0.00021918,2]
[384371235,1757352669426,-1658.295599,0.00021918,2]
[384371236,1757352669436,-1658.295599,0.00021918,2]
[384371237,1757352669445,-1658.295599,0.00021918,2]
[384371238,1757352669455,-1658.295599,0.00021918,2]
[384371239,1757352669464,-1658.295599,0.00021918,2]
[384371240,1757352669474,-1658.295599,0.00021918,2]
[384371241,1757352669483,-1658.295599,0.00021918,2]
[384371242,1757352669492,-1658.295599,0.00021918,2]
[384371243,1757352669501,-1658.29560696,0.00021918,2]
[384371244,1757352669511,-160.0,0.00021931,7]
[384371245,1757352669520,-765.0,0.00022,7]
[384371246,1757352669529,-8563.48,0.00022,7]
[384371247,1757352669539,-355.52935441,0.00022,2]
[384371248,1757352669549,-168.36413254,0.00022,10]
[384371249,1757352669558,-70905.77,0.00022,7]
[384371250,1757352669567,-2000.0,0.00022,2]
[384371251,1757352669577,-1500.54959558,0.00022,2]
[384371252,1757352669586,-10576.6745308,0.00022,7]
[384371253,1757352669596,-1500.0,0.00022,28]
[384371254,1757352669606,-1500.0,0.00022,28]
[384371255,1757352669615,-1500.0,0.00022,28]
[384371256,1757352669625,-1500.0,0.00022,28]
[384371257,1757352669635,-1500.0,0.00022,28]
[384371258,1757352669644,-1500.0,0.00022,28]
[384371259,1757352669654,-1500.0,0.00022,28]
[384371260,1757352669663,-1500.0,0.00022,28]
[384371261,1757352669672,-1500.0,0.00022,28]
[384371262,1757352669682,-1500.0,0.00022,28]
[384371263,1757352669691,-738.534341,0.00022,28]
[384371264,1757352669701,-203.26219058,0.00022,7]
[384371265,1757352669711,-530.71506861,0.00022,7]
[384371266,1757352669720,-1360.0,0.00022022,2]
[384371267,1757352669730,-4577.10849901,0.00022064,2]
[384371268,1757352669740,-331.787355,0.00022075,3]
[384371269,1757352669750,-188.3411242,0.00022087,2]
[384371270,1757352669759,-331.787355,0.00022098,2]
[384371271,1757352669769,-193.01922074,0.000221,2]
[384371272,1757352669779,-331.787355,0.00022143,4]
[384371273,1757352669788,-976.0,0.00022149,2]
[384371274,1757352669801,-2154.0,0.00022149,2]
[384371275,1757352669811,-634.0,0.00022149,2]
[384371276,1757352669820,-409.0,0.00022149,2]
[384371277,1757352669829,-1249.57671594,0.00022158,2]
[384371278,1757352669838,-160.0,0.00022246,8]
[384371279,1757352669859,-331.787355,0.00022361,20]
[384371280,1757352669873,-23622.00996683,0.00022447,2]
[384371281,1757352669883,-300.0,0.00022466,2]
[384371282,1757352669893,-1014.48228306,0.000225,2]
[384371283,1757352669903,-1000.0,0.000225,20]
[384371284,1757352669914,-492.0,0.000225,20]
[384371285,1757352669924,-4000.0,0.000225,4]
[384371286,1757352669934,-151.0,0.000225,3]
[384371287,1757352669944,-151.0,0.000225,3]
[384371288,1757352669954,-151.0,0.000225,3]
[384371289,1757352669964,-151.0,0.000225,3]
[384371290,1757352669974,-151.0,0.000225,3]
[384371291,1757352669991,-151.0,0.000225,3]
[384371292,1757352670000,-151.0,0.000225,3]
[384371293,1757352670011,-151.0,0.000225,3]
[384371294,1757352670022,-151.0,0.000225,3]
[384371295,1757352670032,-151.0,0.000225,3]
[384371296,1757352670041,-151.0,0.000225,3]
[384371297,1757352670051,-151.0,0.000225,3]
[384371298,1757352670065,-151.0,0.000225,3]
[384371299,1757352670075,-151.0,0.000225,3]
[384371300,1757352670085,-151.0,0.000225,3]
[384371301,1757352670095,-151.0,0.000225,3]
[384371302,1757352670104,-151.0,0.000225,3]
[384371303,1757352670114,-151.0,0.000225,3]
[384371304,1757352670124,-151.0,0.000225,3]
[384371305,1757352670133,-151.0,0.000225,3]
[384371306,1757352670142,-167.68266798,0.000225,3]
[384371307,1757352670153,-151.0,0.000225,3]
[384371308,1757352670163,-151.0,0.000225,3]
[384371309,1757352670173,-151.0,0.000225,3]
[384371310,1757352670183,-151.0,0.000225,3]
[384371311,1757352670194,-151.09242464,0.000225,3]
[384371312,1757352670204,-151.0,0.000225,3]
[384371313,1757352670214,-151.0,0.000225,3]
[384371314,1757352670224,-151.0,0.000225,3]
[384371315,1757352670233,-151.0,0.000225,3]
[384371316,1757352670243,-151.0,0.000225,3]
[384371317,1757352670253,-151.0,0.000225,3]
[384371318,1757352670263,-151.0,0.000225,3]
[384371319,1757352670272,-151.0,0.000225,3]
[384371320,1757352670282,-155.0,0.000225,3]
[384371321,1757352670291,-151.0,0.000225,3]
[384371322,1757352670301,-151.0,0.000225,3]
[384371323,1757352670313,-151.0,0.000225,3]
[384371324,1757352670325,-151.0,0.000225,3]
[384371325,1757352670335,-151.0,0.000225,3]
[384371326,1757352670345,-151.0,0.000225,3]
[384371327,1757352670354,-151.0,0.000225,3]
[384371328,1757352670364,-151.0,0.000225,3]
[384371329,1757352670374,-151.0,0.000225,3]
[384371330,1757352670385,-151.0,0.000225,3]
[384371331,1757352670395,-151.0,0.000225,3]
[384371332,1757352670407,-151.0,0.000225,3]
[384371333,1757352670417,-151.0,0.000225,3]
[384371334,1757352670427,-151.0,0.000225,3]
[384371335,1757352670437,-151.0,0.000225,3]
[384371336,1757352670446,-151.0,0.000225,3]
[384371337,1757352670456,-151.0,0.000225,3]
[384371338,1757352670466,-151.0,0.000225,3]
[384371339,1757352670475,-151.0,0.000225,3]
[384371340,1757352670485,-151.0,0.000225,3]
[384371341,1757352670495,-151.0,0.000225,3]
[384371342,1757352670504,-201.0,0.0002255,5]
[384371343,1757352670513,-160.0,0.00022562,9]
[384371344,1757352670523,-5000.0,0.00022568,2]
[384371345,1757352670533,-1460.0,0.0002257,2]
[384371346,1757352670543,-160.0,0.000226,3]
[384371347,1757352670553,-800.0,0.00022684,2]
[384371348,1757352670562,-2700.0,0.00022808,2]
[384371349,1757352670572,-800.0,0.00022836,2]
[384371350,1757352670582,-160.0,0.00022878,10]
[384371351,1757352670592,-331.787355,0.0002292,20]
[384371352,1757352670601,-607.71585296,0.00023,2]
[384371353,1757352670611,-12301.15794082,0.00023,2]
[384371354,1757352670621,-2006.42643913,0.00023,2]
[384371355,1757352670631,-1161.30632976,0.00023,3]
[384371356,1757352670640,-20162.20195018,0.00023,2]
[384371357,1757352670650,-2951.33394385,0.00023,2]
[384371358,1757352670660,-160.0,0.00023,3]
[384371359,1757352670670,-70905.77,0.00023,7]
[384371360,1757352670680,-160.0,0.00023,3]
[384371361,1757352670690,-160.0,0.00023,3]
[384371362,1757352670699,-160.0,0.00023,3]
[384371363,1757352670709,-160.0,0.00023,3]
[384371364,1757352670722,-160.0,0.00023,3]
[384371365,1757352670732,-233.03190505,0.00023,3]
[384371366,1757352670742,-217.62647793,0.00023,3]
[384371367,1757352670752,-160.0,0.00023,3]
[384371368,1757352670762,-10576.6745308,0.00023,3]
[384371369,1757352670773,-203.26219058,0.00023,3]
[384371370,1757352670783,-846.71598105,0.00023,3]
[384371371,1757352670795,-530.71506861,0.00023,3]
[384371372,1757352670807,-450.0,0.00023014,2]
[384371373,1757352670817,-331.787355,0.000231,7]
[384371374,1757352670827,-800.0,0.00023108,2]
[384371375,1757352670839,-1560.0,0.00023118,2]
[384371376,1757352670849,-160.0,0.00023194,11]
[384371377,1757352670860,-331.787355,0.00023214,4]
[384371378,1757352670871,-800.0,0.00023277,2]
[384371379,1757352670882,-397.88658338,0.00023287,2]
[384371380,1757352670892,-2257.6,0.00023287,2]
[384371381,1757352670975,-151.0,0.00023288,7]
[384371382,1757352670985,-151.0,0.00023288,7]
[384371383,1757352670995,-151.0,0.00023288,7]
[384371384,1757352671006,-245.0,0.00023288,7]
[384371385,1757352671015,-69269.89079999,0.000234,2]
[384371386,1757352671128,-7607.05920001,0.000234,2]
[384371387,1757352671139,-8413.59,0.000234,7]
[384371388,1757352671149,-800.0,0.00023412,2]
[384371389,1757352671160,-5000.0,0.00023435,2]
[384371390,1757352671170,-331.787355,0.0002345,7]
[384371391,1757352671180,-331.787355,0.00023479,20]
[384371392,1757352671189,-8563.48,0.000235,7]
[384371393,1757352671199,-1000.0,0.000235,2]
[384371394,1757352671208,-160.0,0.00023509,12]
[384371395,1757352671218,-800.0,0.00023535,2]
[384371396,1757352671227,-318.48,0.00023561,2]
[384371397,1757352671236,-318.48,0.00023561,2]
[384371398,1757352671245,-318.48,0.00023561,2]
[384371399,1757352671256,-318.48,0.00023561,2]
[384371400,1757352671265,-318.48,0.00023561,2]
[384371401,1757352671275,-318.48,0.00023561,2]
[384371402,1757352671284,-11.81922823,0.00023561,2]
[384371403,1757352672187,-480.0,0.00013698,2]
[384371404,1757352672197,-480.0,0.00013698,2]
[384371405,1757352672206,-480.0,0.00013972,2]
[384371406,1757352672216,-480.0,0.00014246,2]
[384371407,1757352672225,-480.0,0.0001452,2]
[384371408,1757352672234,-480.0,0.00014794,2]
[384371409,1757352672244,-480.0,0.00015068,2]
[384371410,1757352672254,-480.0,0.00015342,2]
[384371411,1757352672264,-480.0,0.00015616,2]
[384371412,1757352672274,-583.45,0.00022,2]
[384371413,1757352672283,-1000.0,0.000225,2]
[384371414,1757352672293,-583.45,0.00022848,2]
[384371415,1757352672303,-1000.0,0.00023,2]
[384371416,1757352672313,-1000.0,0.000235,2]
[384371417,1757352672323,-306.66077177,0.00023561,2]
[384371418,1757352672333,-318.48,0.00023561,2]
[384371419,1757352672343,-318.48,0.00023561,2]
[384371420,1757352672353,-318.48,0.00023561,2]
[384371421,1757352672363,-318.48,0.00023561,2]
[384371422,1757352672372,-318.48,0.00023561,2]
[384371423,1757352672383,-318.48,0.00023561,2]
[384371424,1757352672392,-318.48,0.00023561,2]
[384371425,1757352672403,-318.48,0.00023561,2]
[384371426,1757352672412,-318.48,0.00023561,2]
[384371427,1757352672422,-318.48,0.00023561,2]
[384371428,1757352672432,-318.48,0.00023561,2]
[384371429,1757352672441,-318.48,0.00023561,2]
[384371430,1757352672451,-318.48,0.00023561,2]
[384371431,1757352672460,-318.48,0.00023561,2]
[384371432,1757352672470,-318.48,0.00023561,2]
[384371433,1757352672480,-318.48,0.00023561,2]
[384371434,1757352672490,-318.68249231,0.00023561,2]
[384371435,1757352672501,-600.0,0.00023562,2]
[384371436,1757352672511,-600.0,0.00023562,2]
[384371437,1757352672521,-800.0,0.00023583,2]
[384371438,1757352672531,-1660.0,0.00023666,2]
[384371439,1757352672542,-800.0,0.0002367,2]
[384371440,1757352672551,-800.0,0.00023672,2]
[384371441,1757352672561,-750.15,0.00023695,2]
[384371442,1757352672571,-583.45,0.00023695,2]
[384371443,1757352672581,-23622.00996683,0.0002372,2]
[384371444,1757352672592,-1000.0,0.0002375,5]
[384371445,1757352672602,-4000.0,0.0002375,4]
[384371446,1757352672612,-800.0,0.00023774,2]
[384371447,1757352672621,-331.787355,0.000238,7]
[384371448,1757352672630,-600.0,0.00023808,2]
[384371449,1757352672638,-160.0,0.00023825,13]
[384371450,1757352672647,-98063.0,0.0002387,2]
[384371451,1757352672657,-34364.9524,0.00024,2]
[384371452,1757352672667,-23280.44844908,0.00024,15]
[384371453,1757352672676,-2577.12,0.00024,2]
[384371454,1757352672686,-4849.7,0.00024,7]
[384371455,1757352672697,-8245.25786632,0.00024,2]
[384371456,1757352672707,-1706.05700031,0.00024,2]
[384371457,1757352672717,-160.0,0.00024,7]
[384371458,1757352672727,-160.0,0.00024,7]
[384371459,1757352672737,-160.0,0.00024,7]
[384371460,1757352672748,-331.787355,0.00024,3]
[384371461,1757352672757,-160.0,0.00024,7]
[384371462,1757352672767,-160.0,0.00024,7]
[384371463,1757352672778,-233.03190505,0.00024,7]
[384371464,1757352672788,-217.62647793,0.00024,7]
[384371465,1757352672800,-160.0,0.00024,7]
[384371466,1757352672811,-846.71598105,0.00024,7]
[384371467,1757352672823,-1000.0,0.00024,2]
[384371468,1757352672833,-800.0,0.00024023,2]
[384371469,1757352672845,-331.787355,0.00024038,20]
[384371470,1757352672855,-600.0,0.00024053,2]
[384371471,1757352672865,-201.0,0.0002408,9]
[384371472,1757352672877,-750.0,0.0002411,2]
[384371473,1757352672887,-185.23258819,0.00024137,2]
[384371474,1757352672897,-160.0,0.00024141,14]
[384371475,1757352672908,-331.787355,0.0002415,7]
[384371476,1757352672917,-800.0,0.00024158,2]
[384371477,1757352672927,-70905.77,0.000242,7]
[384371478,1757352672938,-1760.0,0.00024214,2]
[384371479,1757352672948,-4027.0,0.00024216,2]
[384371480,1757352672957,-331.787355,0.00024286,4]
[384371481,1757352672967,-600.0,0.00024299,2]
[384371482,1757352672976,-33707.59231673,0.00024301,5]
[384371483,1757352672986,-5000.0,0.00024301,2]
[384371484,1757352672996,-1249.57671594,0.00024331,2]
[384371485,1757352673005,-800.0,0.00024333,2]
[384371486,1757352673016,-625.37455858,0.00024338,2]
[384371487,1757352673026,-600.0,0.0002434,2]
[384371488,1757352673036,-76876.95,0.000244,2]
[384371489,1757352673046,-800.0,0.00024418,2]
[384371490,1757352673057,-800.0,0.00024419,2]
[384371491,1757352673067,-800.0,0.00024434,2]
[384371492,1757352673076,-160.0,0.00024456,15]
[384371493,1757352673087,-7737.1091694,0.0002448,2]
[384371494,1757352673097,-5000.0,0.0002448,2]
[384371495,1757352673107,-5000.0,0.0002448,2]
[384371496,1757352673117,-5000.0,0.0002448,2]
[384371497,1757352673127,-5000.0,0.0002448,2]
[384371498,1757352673136,-661.7962147,0.000245,2]
[384371499,1757352673146,-257.78239365,0.000245,2]
[384371500,1757352673156,-331.787355,0.000245,7]
[384371501,1757352673166,-1000.0,0.000245,2]
[384371502,1757352673175,-800.0,0.00024539,2]
[384371503,1757352673185,-583.45,0.00024543,2]
[384371504,1757352673195,-211.0,0.00024544,2]
[384371505,1757352673205,-600.0,0.00024544,2]
[384371506,1757352673215,-331.787355,0.00024597,20]
[384371507,1757352673225,-175271.4541178,0.000246,14]
[384371508,1757352673235,-8413.59,0.000246,7]
[384371509,1757352673245,-35438.0647,0.000246,14]
[384371510,1757352673255,-800.0,0.00024638,2]
[384371511,1757352673265,-105269.11475923,0.0002465,2]
[384371512,1757352673275,-195889.24986941,0.0002465,2]
[384371513,1757352673303,-480.0,0.00013698,2]
[384371514,1757352673314,-480.0,0.0001589,2]
[384371515,1757352673324,-409.14886742,0.0002465,2]
[384371517,1757353014549,8807.24273972,0.00012467,2]
[384371518,1757353014574,1192.75726028,0.00012467,2]
[384371519,1757353015804,-169.9243426,0.00013193,2]
[384371520,1757353056967,169.9243426,0.00013061,2]
[384371521,1757353079579,169.9243426,0.00013061,2]
[384371522,1757353102561,169.9243426,0.00013061,2]
[384371523,1757353125191,169.9243426,0.00013061,2]
[384371525,1757353147474,169.9243426,0.00013061,2]
[384371526,1757353171164,169.9243426,0.00013061,2]
[384371527,1757353193469,169.9243426,0.00013061,2]
[384371528,1757353202731,169.9243426,0.00013061,2]
[384371529,1757353227432,312.39417902,0.00013103,2]
[384371530,1757353249811,206.23431965,0.00013103,2]
[384371531,1757353249834,106.15985937,0.00013103,2]
[384371532,1757353272230,312.39417902,0.00013103,2]
[384371533,1757353296490,312.39417902,0.00013103,2]
[384371534,1757353320485,312.39417902,0.00013103,2]
[384371535,1757353339271,157.993978,0.00025,30]
[384371536,1757353339587,157.993978,0.00025,30]
[384371537,1757353343713,312.39417902,0.00013103,2]
[384371538,1757353366538,312.39417902,0.00013103,2]
[384371539,1757353392265,312.39417902,0.00013103,2]
[384371540,1757353395360,319.2745905,0.0001247,2]
[384371541,1757353407990,312.39417902,0.00013103,2]
[384371543,1757353431904,169.9243426,0.00013107,2]
[384371544,1757353456426,169.9243426,0.00013107,2]
[384371545,1757353479366,169.9243426,0.00013107,2]
[384371546,1757353501920,169.9243426,0.00013107,2]
[384371547,1757353515255,106355.41028756,0.0002868,60]
[384371548,1757353524473,169.9243426,0.00013107,2]
[384371549,1757353548510,169.9243426,0.00013107,2]
[384371550,1757353573161,169.9243426,0.00013107,2]
[384371553,1757353595461,169.9243426,0.00013107,2]
[384371554,1757353619990,312.39417902,0.00013103,2]
[384371555,1757353642844,312.39417902,0.00013103,2]
[384371556,1757353668341,312.39417902,0.00013103,2]
[384371557,1757353691446,312.39417902,0.00013103,2]
[384371559,1757353715438,312.39417902,0.00013103,2]
[384371560,1757353738281,312.39417902,0.00013103,2]
[384371561,1757353761273,312.39417902,0.00013103,2]
[384371562,1757353784391,312.39417902,0.00013103,2]
[384371563,1757353808956,506.71271333,0.00013103,2]
[384371606,1757353832115,-506.71271333,0.00013235,2]
[384371608,1757353832125,-194.31853431,0.00013369,2]
[384371610,1757353832134,-312.39417902,0.00013369,2]
[384371612,1757353832144,-169.9243426,0.00013373,2]
[384371614,1757353832154,-300.0,0.00013468,2]
[384371615,1757353832167,-351.08442889,0.00013469,2]
[384371617,1757353832176,-500.0,0.00013469,2]
[384371619,1757353832186,-500.0,0.00013469,2]
[384371621,1757353832196,-500.0,0.00013469,2]
[384371623,1757353832208,-500.0,0.00013469,2]
[384371625,1757353832217,-500.0,0.00013469,2]
[384371626,1757353832227,-500.0,0.00013469,2]
[384371629,1757353832238,-500.0,0.00013469,2]
[384371632,1757353832248,-500.0,0.00013469,2]
[384371635,1757353832257,-601.87079277,0.00013469,2]
[384371637,1757353832266,-500.0,0.00013469,2]
[384371639,1757353832276,-500.0,0.00013469,2]
[384371640,1757353832285,-500.0,0.00013469,2]
[384371642,1757353832294,-500.0,0.00013469,2]
[384371644,1757353832303,-545.42018949,0.00013469,2]
[384371646,1757353832313,-500.0,0.00013469,2]
[384371648,1757353832323,-500.0,0.00013469,2]
[384371650,1757353832332,-500.0,0.00013469,2]
[384371652,1757353832342,-500.0,0.00013469,2]
[384371653,1757353832351,-290.0,0.00013469,2]
[384371655,1757353832360,-12971.92121697,0.0001347,2]
[384371657,1757353832372,-345.14978172,0.0001347,2]
[384371661,1757353832402,506.71271333,0.00013103,2]
[384371824,1757353838029,-19709.81735915,0.0001347,2]
[384371825,1757353838040,-5647.63764001,0.0001347,2]
[384371826,1757353838082,-174879.60318982,0.0001347,2]
[384371827,1757353838092,-500.0,0.00013473,2]
[384371828,1757353838102,-500.0,0.00013473,2]
[384371829,1757353838111,-487.9182464,0.00013473,2]
[384371830,1757353838122,-500.8031173,0.00013473,2]
[384371831,1757353838131,-500.0,0.00013473,2]
[384371832,1757353838141,-301.91221735,0.00013473,2]
[384371833,1757353838151,-500.0,0.00013473,2]
[384371834,1757353838164,-500.0,0.00013473,2]
[384371835,1757353838174,-500.0,0.00013473,2]
[384371836,1757353838183,-500.0,0.00013473,2]
[384371837,1757353838194,-500.0,0.00013473,2]
[384371838,1757353838203,-406.21919761,0.00013473,2]
[384371839,1757353838213,-500.0,0.00013473,2]
[384371840,1757353838222,-500.0,0.00013473,2]
[384371841,1757353838233,-158.02775411,0.00013473,2]
[384371842,1757353838243,-500.0,0.00013473,2]
[384371843,1757353838252,-500.0,0.00013473,2]
[384371844,1757353838261,-500.0,0.00013473,2]
[384371845,1757353838271,-500.0,0.00013473,2]
[384371846,1757353838280,-502.33241197,0.00013473,2]
[384371847,1757353838289,-500.0,0.00013473,2]
[384371848,1757353838298,-500.0,0.00013473,2]
[384371849,1757353838308,-504.62796832,0.00013473,2]
[384371850,1757353838317,-500.0,0.00013473,2]
[384371851,1757353838326,-503.10042021,0.00013473,2]
[384371852,1757353838335,-500.0,0.00013473,2]
[384371853,1757353838345,-500.0,0.00013473,2]
[384371854,1757353838354,-500.0,0.00013473,2]
[384371855,1757353838363,-500.0,0.00013473,2]
[384371856,1757353838372,-500.0,0.00013473,2]
[384371857,1757353838382,-500.0,0.00013473,2]
[384371858,1757353838392,-500.0,0.00013473,2]
[384371859,1757353838401,-500.0,0.00013473,2]
[384371860,1757353838411,-428.17695497,0.00013473,2]
[384371861,1757353838420,-500.0,0.00013473,2]
[384371862,1757353838430,-502.45815732,0.00013473,2]
[384371863,1757353838440,-500.0,0.00013473,2]
[384371864,1757353838450,-488.11582637,0.00013473,2]
[384371865,1757353838460,-500.0,0.00013473,2]
[384371866,1757353838470,-335.62398213,0.00013473,2]
[384371867,1757353838480,-500.0,0.00013473,2]
[384371868,1757353838490,-500.0,0.00013473,2]
[384371869,1757353838499,-500.0,0.00013473,2]
[384371870,1757353838509,-500.0,0.00013673,2]
[384371871,1757353838518,-500.0,0.00013673,2]
[384371872,1757353838527,-500.0,0.00013673,2]
[384371873,1757353838537,-401.39850244,0.00013673,2]
[384371874,1757353838547,-478.87282249,0.00013673,2]
[384371875,1757353838556,-164.36922765,0.00013673,2]
[384371876,1757353838566,-480.0,0.00013698,2]
[384371877,1757353838575,-480.0,0.00013698,2]
[384371878,1757353838585,-480.0,0.00013698,2]
[384371879,1757353838594,-480.0,0.00013698,2]
[384371880,1757353838604,-480.0,0.00013698,2]
[384371881,1757353838614,-480.0,0.00013698,2]
[384371882,1757353838623,-480.0,0.00013698,2]
[384371883,1757353838632,-480.0,0.00013698,2]
[384371884,1757353838641,-480.0,0.00013698,2]
[384371885,1757353838651,-480.0,0.00013698,2]
[384371886,1757353838660,-480.0,0.00013698,2]
[384371887,1757353838669,-480.0,0.00013698,2]
[384371888,1757353838679,-480.0,0.00013698,2]
[384371889,1757353838688,-480.0,0.00013698,2]
[384371890,1757353838698,-480.0,0.00013698,2]
[384371891,1757353838708,-480.0,0.00013698,2]
[384371892,1757353838717,-483.96170334,0.00013698,2]
[384371893,1757353838726,-480.0,0.00013698,2]
[384371894,1757353838736,-341.44161282,0.00013698,2]
[384371895,1757353838745,-480.0,0.00013698,2]
[384371896,1757353838754,-480.0,0.00013698,2]
[384371897,1757353838764,-480.0,0.00013698,2]
[384371898,1757353838774,-354.19941838,0.00013698,2]
[384371899,1757353838783,-480.0,0.00013698,2]
[384371900,1757353838793,-480.0,0.00013698,2]
[384371901,1757353838802,-480.0,0.00013698,2]
[384371902,1757353838812,-480.0,0.00013698,2]
[384371903,1757353838821,-480.0,0.00013698,2]
[384371904,1757353838830,-480.0,0.00013698,2]
[384371905,1757353838840,-480.0,0.00013698,2]
[384371906,1757353838850,-480.0,0.00013698,2]
[384371907,1757353838859,-480.0,0.00013698,2]
[384371908,1757353838869,-482.40240742,0.00013698,2]
[384371909,1757353838879,-480.0,0.00013698,2]
[384371910,1757353838888,-480.0,0.00013698,2]
[384371911,1757353838897,-480.0,0.00013698,2]
[384371912,1757353838907,-469.22306329,0.00013698,2]
[384371913,1757353838916,-480.0,0.00013698,2]
[384371914,1757353838926,-480.0,0.00013698,2]
[384371915,1757353838935,-480.0,0.00013698,2]
[384371916,1757353838945,-480.0,0.00013698,2]
[384371917,1757353838954,-531.6513929,0.00013698,2]
[384371918,1757353838964,-480.0,0.00013698,2]
[384371919,1757353838975,-480.0,0.00013698,2]
[384371920,1757353838984,-480.0,0.00013698,2]
[384371921,1757353838994,-480.0,0.00013698,2]
[384371922,1757353839003,-480.0,0.00013698,2]
[384371923,1757353839013,-482.97486032,0.00013698,2]
[384371924,1757353839023,-480.0,0.00013698,2]